[Event "Vastgota Open 2022"]
[Site "Skara stadshotell, Jarnvagsgatan 5, Skara, Sweden"]
[Date "2022.10.29"]
[Round "2.3"]
[White "Bellon Lopez, Juan Manuel"]
[Black "Bengtsson, Siv"]
[Result "0-1"]
[TimeControl "30 minutes + 10 seconds per move from move one."]
[WhiteTitle "GM"]
[WhiteFideId "2200031"]
[BlackFideId "1701673"]
[WhiteElo "2347"]
[BlackElo "1952"]

1. d4 {[%clk 00:30:19]} {[%emt 01:19:17]} Nf6 {[%clk 00:29:55]} {[%emt
00:00:26]} 2. Bg5 {[%clk 00:30:25]} {[%emt 00:00:04]} e6 {[%clk 00:29:32]}
{[%emt 00:02:45]} 3. e3 {[%clk 00:30:29]} Be7 {[%clk 00:29:15]} 4. Nf3 {[%clk
00:30:33]} d5 {[%clk 00:28:31]} 5. Nbd2 {[%clk 00:30:27]} c5 {[%clk 00:27:49]}
{[%emt 00:00:29]} 6. c3 {[%clk 00:30:34]} {[%emt 00:00:04]} Nbd7 {[%clk
00:27:30]} {[%emt 00:00:28]} 7. Bd3 {[%clk 00:30:04]} {[%emt 00:00:33]} O-O
{[%clk 00:26:51]} {[%emt 00:02:39]} 8. O-O {[%clk 00:29:46]} {[%emt 00:00:28]}
b6 {[%clk 00:25:48]} {[%emt 00:01:13]} 9. a4 {[%clk 00:29:28]} {[%emt
00:00:27]} Bb7 {[%clk 00:25:22]} {[%emt 00:00:37]} 10. Qc2 {[%clk 00:26:36]}
{[%emt 00:03:02]} h6 {[%clk 00:22:48]} {[%emt 00:02:44]} 11. Bh4 {[%clk
00:26:43]} {[%emt 00:00:04]} Rc8 {[%clk 00:22:13]} {[%emt 00:00:44]} 12. Rfd1
{[%clk 00:26:27]} {[%emt 00:00:26]} Qc7 {[%clk 00:20:19]} {[%emt 00:02:03]} 13.
Rac1 {[%clk 00:21:44]} {[%emt 00:04:54]} Rfe8 {[%clk 00:18:35]} {[%emt
00:01:54]} 14. Qb1 {[%clk 00:20:54]} {[%emt 00:00:59]} Qb8 {[%clk 00:17:50]}
{[%emt 00:00:56]} 15. Bg3 {[%clk 00:19:44]} {[%emt 00:01:19]} Bd6 {[%clk
00:17:38]} {[%emt 00:00:23]} 16. b4 {[%clk 00:18:43]} {[%emt 00:01:11]} Bxg3
{[%clk 00:17:07]} {[%emt 00:00:41]} 17. hxg3 {[%clk 00:18:50]} {[%emt
00:00:03]} c4 {[%clk 00:13:45]} {[%emt 00:03:32]} 18. Be2 {[%clk 00:18:14]}
{[%emt 00:00:45]} e5 {[%clk 00:11:13]} {[%emt 00:02:43]} 19. dxe5 {[%clk
00:15:02]} {[%emt 00:03:22]} Nxe5 {[%clk 00:11:17]} {[%emt 00:00:06]} 20. Nxe5
{[%clk 00:14:27]} {[%emt 00:00:45]} Qxe5 {[%clk 00:11:02]} {[%emt 00:00:25]} 21.
Nf3 {[%clk 00:13:49]} {[%emt 00:00:48]} Qe4 {[%clk 00:08:32]} {[%emt 00:02:40]}
22. Nd4 {[%clk 00:10:43]} {[%emt 00:03:15]} Rcd8 {[%clk 00:07:08]} {[%emt
00:01:34]} 23. Bf3 {[%clk 00:09:28]} {[%emt 00:01:25]} Qxb1 {[%clk 00:07:02]}
{[%emt 00:00:17]} 24. Rxb1 {[%clk 00:09:35]} {[%emt 00:00:03]} Ne4 {[%clk
00:07:00]} {[%emt 00:00:11]} 25. Rbc1 {[%clk 00:08:41]} {[%emt 00:01:05]} g6
{[%clk 00:05:49]} {[%emt 00:01:22]} 26. Nb5 {[%clk 00:05:39]} {[%emt 00:03:11]}
a6 {[%clk 00:05:36]} {[%emt 00:00:23]} 27. Nc7 {[%clk 00:04:57]} {[%emt
00:00:52]} Re7 {[%clk 00:04:58]} {[%emt 00:00:49]} 28. Bxe4 {[%clk 00:05:05]}
{[%emt 00:00:02]} Rxe4 {[%clk 00:04:17]} {[%emt 00:00:51]} 29. b5 {[%clk
00:05:15]} axb5 {[%clk 00:03:44]} {[%emt 00:00:43]} 30. Nxb5 {[%clk 00:05:12]}
{[%emt 00:00:13]} Ra8 {[%clk 00:02:51]} {[%emt 00:01:03]} 31. Nd6 {[%clk
00:04:18]} {[%emt 00:01:04]} Re7 {[%clk 00:02:54]} {[%emt 00:00:07]} 32. Nxb7
{[%clk 00:04:07]} {[%emt 00:00:21]} Rxb7 {[%clk 00:03:02]} {[%emt 00:00:02]} 33.
Rxd5 {[%clk 00:04:16]} {[%emt 00:00:02]} Rxa4 {[%clk 00:03:09]} {[%emt
00:00:02]} 34. Rb5 {[%clk 00:04:11]} {[%emt 00:00:15]} Ra2 {[%clk 00:02:36]}
{[%emt 00:00:43]} 35. g4 {[%clk 00:03:58]} {[%emt 00:00:23]} Rd7 {[%clk
00:02:17]} {[%emt 00:00:30]} 36. Rb4 {[%clk 00:02:49]} {[%emt 00:01:18]} Rdd2
{[%clk 00:02:08]} {[%emt 00:00:18]} 37. Rf1 {[%clk 00:02:59]} b5 {[%clk
00:02:11]} {[%emt 00:00:08]} 38. Rxb5 {[%clk 00:03:08]} Rac2 {[%clk 00:02:20]}
39. g5 {[%clk 00:03:03]} {[%emt 00:00:15]} hxg5 {[%clk 00:02:28]} {[%emt
00:00:01]} 40. Rxg5 {[%clk 00:03:11]} {[%emt 00:00:03]} Rxc3 {[%clk 00:02:36]}
{[%emt 00:00:01]} 41. Rg3 {[%clk 00:02:05]} {[%emt 00:01:16]} Rcd3 {[%clk
00:02:19]} {[%emt 00:00:27]} 42. Kh2 {[%clk 00:01:34]} {[%emt 00:00:40]} Rd1
{[%clk 00:02:22]} {[%emt 00:00:08]} 43. Rxd1 {[%clk 00:01:37]} {[%emt
00:00:07]} Rxd1 {[%clk 00:02:31]} {[%emt 00:00:02]} 44. Rg4 {[%clk 00:01:21]}
{[%emt 00:00:25]} c3 {[%clk 00:02:24]} {[%emt 00:00:16]} 45. Rc4 {[%clk
00:01:31]} Rd2 {[%clk 00:01:37]} {[%emt 00:00:57]} 46. Kg3 {[%clk 00:01:03]}
{[%emt 00:00:37]} Rc2 {[%clk 00:01:41]} {[%emt 00:00:07]} 47. e4 {[%clk
00:00:55]} {[%emt 00:00:19]} Kf8 {[%clk 00:01:17]} {[%emt 00:00:33]} 48. Rc7
{[%clk 00:00:54]} {[%emt 00:00:10]} Re2 {[%clk 00:00:58]} {[%emt 00:00:29]} 49.
Kf3 {[%clk 00:01:03]} {[%emt 00:00:04]} Rc2 {[%clk 00:01:07]} 50. Ke3 {[%clk
00:01:00]} {[%emt 00:00:13]} Kg7 {[%clk 00:01:08]} {[%emt 00:00:10]} 51. g3
{[%clk 00:00:47]} {[%emt 00:00:22]} Kf6 {[%clk 00:01:05]} {[%emt 00:00:13]} 52.
Rc6+ {[%clk 00:00:51]} {[%emt 00:00:06]} Kg7 {[%clk 00:01:12]} {[%emt
00:00:02]} 53. g4 {[%clk 00:00:55]} {[%emt 00:00:07]} Rc1 {[%clk 00:01:11]}
{[%emt 00:00:10]} 54. f3 {[%clk 00:00:49]} {[%emt 00:00:17]} Re1+ {[%clk
00:00:56]} {[%emt 00:00:25]} 55. Kd3 {[%clk 00:00:41]} {[%emt 00:00:18]} Rf1
{[%clk 00:01:05]} {[%emt 00:00:02]} 56. Ke2 {[%clk 00:00:48]} {[%emt 00:00:03]}
Rc1 {[%clk 00:01:12]} {[%emt 00:00:03]} 57. e5 {[%clk 00:00:48]} {[%emt
00:00:10]} c2 {[%clk 00:00:37]} {[%emt 00:00:46]} 58. Kf2 {[%clk 00:00:54]}
{[%emt 00:00:04]} Rh1 {[%clk 00:00:35]} {[%emt 00:00:12]} 0-1

[Event "Vastgota Open 2022"]
[Site "Skara stadshotell, Jarnvagsgatan 5, Skara, Sweden"]
[Date "2022.10.29"]
[Round "2.4"]
[White "Bengtsson, Jessica"]
[Black "Golubka, Petro"]
[Result "0-1"]
[TimeControl "30 minutes + 10 seconds per move from move one."]
[WhiteTitle "WFM"]
[BlackTitle "GM"]
[WhiteFideId "1711083"]
[BlackFideId "14114224"]
[WhiteElo "2003"]
[BlackElo "2335"]

1. e4 {[%clk 00:30:16]} {[%emt 00:00:02]} b6 {[%clk 00:30:06]} {[%emt
00:00:15]} 2. d4 {[%clk 00:30:14]} {[%emt 00:00:12]} Bb7 {[%clk 00:30:14]}
{[%emt 00:02:37]} 3. Nc3 {[%clk 00:29:57]} e6 {[%clk 00:30:18]} 4. Bd3 {[%clk
00:29:36]} Nc6 {[%clk 00:30:23]} 5. Nf3 {[%clk 00:28:57]} Nb4 {[%clk 00:30:29]}
6. Be2 {[%clk 00:25:38]} {[%emt 00:04:43]} Nf6 {[%clk 00:30:30]} {[%emt
00:00:09]} 7. a3 {[%clk 00:25:15]} {[%emt 00:00:33]} Nc6 {[%clk 00:30:35]}
{[%emt 00:00:05]} 8. O-O {[%clk 00:25:01]} {[%emt 00:00:24]} Ne7 {[%clk
00:30:08]} {[%emt 00:00:38]} 9. Bd3 {[%clk 00:24:17]} {[%emt 00:00:52]} Ng6
{[%clk 00:28:41]} {[%emt 00:01:38]} 10. Re1 {[%clk 00:23:37]} {[%emt 00:00:50]}
d6 {[%clk 00:26:30]} {[%emt 00:02:22]} 11. h3 {[%clk 00:20:04]} {[%emt
00:03:42]} Be7 {[%clk 00:25:56]} {[%emt 00:00:45]} 12. a4 {[%clk 00:18:45]}
{[%emt 00:01:28]} a6 {[%clk 00:25:56]} {[%emt 00:00:11]} 13. Bd2 {[%clk
00:17:21]} {[%emt 00:01:33]} O-O {[%clk 00:25:14]} {[%emt 00:00:53]} 14. b4
{[%clk 00:15:18]} {[%emt 00:02:12]} c6 {[%clk 00:24:51]} {[%emt 00:00:33]} 15.
a5 {[%clk 00:14:18]} {[%emt 00:01:10]} c5 {[%clk 00:23:46]} {[%emt 00:01:16]}
16. axb6 {[%clk 00:10:28]} {[%emt 00:04:01]} cxb4 {[%clk 00:22:36]} {[%emt
00:01:20]} 17. Na4 {[%clk 00:10:35]} {[%emt 00:00:02]} d5 {[%clk 00:22:22]}
{[%emt 00:00:25]} 18. e5 {[%clk 00:09:13]} {[%emt 00:01:31]} Ne4 {[%clk
00:21:16]} {[%emt 00:01:16]} 19. Qb1 {[%clk 00:08:17]} {[%emt 00:01:06]} a5
{[%clk 00:21:06]} {[%emt 00:00:20]} 20. Bb5 {[%clk 00:06:09]} {[%emt 00:02:18]}
f6 {[%clk 00:20:44]} {[%emt 00:00:33]} 21. exf6 {[%clk 00:05:31]} {[%emt
00:00:48]} Rxf6 {[%clk 00:20:41]} {[%emt 00:00:11]} 22. Bg5 {[%clk 00:05:07]}
{[%emt 00:00:34]} Rxf3 {[%clk 00:20:26]} {[%emt 00:00:26]} 23. Bxe7 {[%clk
00:04:57]} {[%emt 00:00:20]} Qxe7 {[%clk 00:20:22]} {[%emt 00:00:13]} 24. Rxe4
{[%clk 00:01:58]} {[%emt 00:03:08]} dxe4 {[%clk 00:20:20]} {[%emt 00:00:13]} 25.
gxf3 {[%clk 00:02:02]} {[%emt 00:00:06]} Qg5+ {[%clk 00:20:18]} {[%emt
00:00:12]} 26. Kf1 {[%clk 00:01:49]} {[%emt 00:00:21]} Qxb5+ {[%clk 00:20:19]}
{[%emt 00:00:10]} 0-1

[Event "Vastgota Open 2022"]
[Site "Skara stadshotell, Jarnvagsgatan 5, Skara, Sweden"]
[Date "2022.10.29"]
[Round "2.5"]
[White "Ronneland, Daniel"]
[Black "Bailly, Thierry"]
[Result "1-0"]
[TimeControl "30 minutes + 10 seconds per move from move one."]
[WhiteFideId "1702130"]
[BlackFideId "26051680"]
[WhiteElo "2206"]
[BlackElo "1931"]

1. e4 {[%clk 00:30:16]} {[%emt 00:00:03]} c5 {[%clk 00:30:19]} {[%emt
00:00:02]} 2. Nf3 {[%clk 00:30:16]} {[%emt 00:00:10]} e6 {[%clk 00:30:28]}
{[%emt 00:00:01]} 3. d4 {[%clk 00:30:16]} {[%emt 00:00:10]} cxd4 {[%clk
00:30:36]} {[%emt 00:00:01]} 4. Nxd4 {[%clk 00:30:17]} {[%emt 00:00:09]} Nf6
{[%clk 00:30:45]} {[%emt 00:00:02]} 5. Nc3 {[%clk 00:30:17]} {[%emt 00:02:40]}
Nc6 {[%clk 00:30:54]} 6. Nxc6 bxc6 {[%clk 00:31:01]} 7. e5 {[%clk 00:29:58]}
Nd5 {[%clk 00:31:09]} 8. Ne4 {[%clk 00:29:36]} Qc7 {[%clk 00:31:16]} 9. f4
{[%clk 00:29:35]} Qb6 {[%clk 00:31:17]} 10. c4 {[%clk 00:29:28]} Bb4+ {[%clk
00:24:03]} {[%emt 00:06:51]} 11. Ke2 {[%clk 00:29:33]} {[%emt 00:00:04]} f5
{[%clk 00:20:43]} {[%emt 00:03:31]} 12. Nf2 {[%clk 00:29:21]} {[%emt 00:00:20]}
Ba6 {[%clk 00:15:24]} {[%emt 00:05:31]} 13. Kf3 {[%clk 00:29:00]} {[%emt
00:00:28]} Nc7 {[%clk 00:15:14]} {[%emt 00:00:22]} 14. Be3 {[%clk 00:27:59]}
{[%emt 00:01:10]} Bc5 {[%clk 00:14:10]} {[%emt 00:01:15]} 15. Bxc5 {[%clk
00:27:31]} {[%emt 00:00:38]} Qxc5 {[%clk 00:14:18]} {[%emt 00:00:02]} 16. Qd6
{[%clk 00:27:20]} {[%emt 00:00:20]} Qb6 {[%clk 00:12:30]} {[%emt 00:02:02]} 17.
Rd1 {[%clk 00:22:39]} {[%emt 00:04:45]} O-O-O {[%clk 00:10:02]} {[%emt
00:02:42]} 18. b4 {[%clk 00:20:06]} {[%emt 00:02:42]} Ne8 {[%clk 00:07:36]}
{[%emt 00:02:36]} 19. Qe7 {[%clk 00:19:21]} {[%emt 00:00:54]} Rg8 {[%clk
00:06:44]} {[%emt 00:01:03]} 20. h4 {[%clk 00:14:18]} {[%emt 00:05:12]} g6
{[%clk 00:04:25]} {[%emt 00:02:29]} 21. Bd3 {[%clk 00:10:37]} {[%emt 00:03:51]}
c5 {[%clk 00:02:00]} {[%emt 00:02:35]} 22. Qxc5+ {[%clk 00:10:03]} {[%emt
00:00:44]} Qxc5 {[%clk 00:02:08]} {[%emt 00:00:03]} 23. bxc5 {[%clk 00:10:07]}
{[%emt 00:00:05]} Ng7 {[%clk 00:01:55]} {[%emt 00:00:22]} 24. Be2 {[%clk
00:09:28]} {[%emt 00:00:48]} Nh5 {[%clk 00:01:57]} {[%emt 00:00:09]} 25. Rd6
{[%clk 00:08:54]} {[%emt 00:00:43]} Bb7+ {[%clk 00:01:35]} {[%emt 00:00:33]} 26.
Ke3 {[%clk 00:08:54]} {[%emt 00:00:09]} Ng3 {[%clk 00:01:14]} {[%emt 00:00:32]}
27. Rg1 {[%clk 00:07:35]} {[%emt 00:01:28]} Nxe2 {[%clk 00:01:06]} {[%emt
00:00:18]} 28. Kxe2 {[%clk 00:07:39]} {[%emt 00:00:06]} Kc7 {[%clk 00:00:51]}
{[%emt 00:00:25]} 29. g4 {[%clk 00:02:56]} {[%emt 00:04:53]} Bc6 {[%clk
00:00:54]} {[%emt 00:00:07]} 30. Rdd1 {[%clk 00:02:44]} {[%emt 00:00:22]} Rb8
{[%clk 00:00:39]} {[%emt 00:00:25]} 31. Rb1 {[%clk 00:02:21]} {[%emt 00:00:33]}
Ba4 {[%clk 00:00:29]} {[%emt 00:00:21]} 32. Kd3 {[%clk 00:02:05]} {[%emt
00:00:23]} Rgf8 {[%clk 00:00:20]} {[%emt 00:00:20]} 33. Rxb8 {[%clk 00:01:43]}
{[%emt 00:00:33]} Rxb8 {[%clk 00:00:24]} {[%emt 00:00:06]} 34. gxf5 {[%clk
00:01:38]} {[%emt 00:00:14]} exf5 {[%clk 00:00:30]} {[%emt 00:00:04]} 35. Kc3
{[%clk 00:01:13]} {[%emt 00:00:35]} Bc6 {[%clk 00:00:15]} {[%emt 00:00:25]} 36.
Nd3 {[%clk 00:01:19]} {[%emt 00:00:04]} Be4 {[%clk 00:00:17]} {[%emt 00:00:08]}
37. Nb4 {[%clk 00:01:19]} {[%emt 00:00:09]} Rb7 {[%clk 00:00:12]} {[%emt
00:00:16]} 38. Rd1 {[%clk 00:01:16]} {[%emt 00:00:12]} a5 {[%clk 00:00:17]}
{[%emt 00:00:07]} 39. Nd5+ {[%clk 00:00:57]} {[%emt 00:00:30]} Kc6 {[%clk
00:00:25]} {[%emt 00:00:01]} 40. Nf6 {[%clk 00:00:53]} {[%emt 00:00:13]} a4
{[%clk 00:00:20]} {[%emt 00:00:16]} 41. Nxh7 {[%clk 00:00:53]} {[%emt
00:00:09]} a3 {[%clk 00:00:23]} {[%emt 00:00:08]} 42. Nf6 {[%clk 00:00:43]}
{[%emt 00:00:21]} Rb2 {[%clk 00:00:27]} {[%emt 00:00:05]} 43. Rd2 {[%clk
00:00:52]} {[%emt 00:00:02]} Rxd2 {[%clk 00:00:25]} {[%emt 00:00:12]} 44. Kxd2
{[%clk 00:01:00]} {[%emt 00:00:01]} Bb1 {[%clk 00:00:34]} 45. Nd5 {[%clk
00:00:47]} {[%emt 00:00:23]} Kxc5 {[%clk 00:00:35]} {[%emt 00:00:10]} 46. Nc3
{[%clk 00:00:41]} {[%emt 00:00:16]} Be4 {[%clk 00:00:41]} {[%emt 00:00:04]} 47.
Nxe4+ {[%clk 00:00:45]} {[%emt 00:00:06]} fxe4 {[%clk 00:00:50]} {[%emt
00:00:01]} 48. f5 {[%clk 00:00:54]} {[%emt 00:00:01]} gxf5 {[%clk 00:00:43]}
{[%emt 00:00:17]} 49. h5 {[%clk 00:01:03]} Kd4 {[%clk 00:00:51]} {[%emt
00:00:02]} 50. h6 {[%clk 00:01:06]} {[%emt 00:00:07]} e3+ {[%clk 00:00:57]}
{[%emt 00:00:04]} 51. Ke2 {[%clk 00:01:02]} {[%emt 00:00:14]} Ke4 {[%clk
00:01:06]} {[%emt 00:00:01]} 52. h7 {[%clk 00:01:10]} {[%emt 00:00:01]} f4
{[%clk 00:01:15]} 53. h8=Q {[%clk 00:01:18]} {[%emt 00:00:03]} f3+ {[%clk
00:01:23]} {[%emt 00:00:01]} 54. Ke1 {[%clk 00:01:27]} Kd3 {[%clk 00:01:32]}
{[%emt 00:00:02]} 55. Qh7+ {[%clk 00:01:23]} {[%emt 00:00:13]} 1-0

[Event "Vastgota Open 2022"]
[Site "Skara stadshotell, Jarnvagsgatan 5, Skara, Sweden"]
[Date "2022.10.29"]
[Round "2.6"]
[White "Johansson, Stefan"]
[Black "Johansson, Ulf"]
[Result "0-1"]
[TimeControl "30 minutes + 10 seconds per move from move one."]
[WhiteFideId "1733745"]
[BlackFideId "1701380"]
[WhiteElo "1946"]
[BlackElo "2183"]

1. e4 {[%clk 00:30:18]} {[%emt 00:00:01]} c5 {[%clk 00:30:14]} {[%emt
00:00:06]} 2. Nc3 {[%clk 00:30:19]} {[%emt 00:00:09]} Nc6 {[%clk 00:30:20]}
{[%emt 00:00:04]} 3. g3 {[%clk 00:30:17]} {[%emt 00:00:12]} g6 {[%clk
00:30:27]} {[%emt 00:00:04]} 4. Bg2 {[%clk 00:30:20]} {[%emt 00:02:40]} Bg7
{[%clk 00:30:34]} 5. d3 {[%clk 00:29:59]} d6 {[%clk 00:30:28]} 6. f4 {[%clk
00:29:31]} e5 {[%clk 00:29:32]} 7. Nf3 {[%clk 00:28:33]} {[%emt 00:01:08]} Nge7
{[%clk 00:29:26]} {[%emt 00:00:16]} 8. O-O {[%clk 00:28:02]} {[%emt 00:00:41]}
Bg4 {[%clk 00:28:49]} {[%emt 00:00:47]} 9. h3 {[%clk 00:27:46]} {[%emt
00:00:26]} Bd7 {[%clk 00:28:16]} {[%emt 00:00:43]} 10. fxe5 {[%clk 00:24:55]}
{[%emt 00:03:01]} dxe5 {[%clk 00:27:39]} {[%emt 00:00:46]} 11. Bg5 {[%clk
00:24:37]} {[%emt 00:00:29]} f6 {[%clk 00:27:34]} {[%emt 00:00:16]} 12. Be3
{[%clk 00:24:16]} {[%emt 00:00:31]} Nd4 {[%clk 00:27:32]} {[%emt 00:00:12]} 13.
a4 {[%clk 00:21:22]} {[%emt 00:03:04]} Be6 {[%clk 00:27:22]} {[%emt 00:00:19]}
14. Qd2 {[%clk 00:18:46]} {[%emt 00:02:46]} Qd7 {[%clk 00:26:46]} {[%emt
00:00:46]} 15. Kh2 {[%clk 00:18:51]} {[%emt 00:00:05]} O-O {[%clk 00:26:32]}
{[%emt 00:00:24]} 16. Rf2 {[%clk 00:18:36]} {[%emt 00:00:25]} Rad8 {[%clk
00:25:25]} {[%emt 00:01:17]} 17. Rd1 {[%clk 00:15:56]} {[%emt 00:02:50]} Rfe8
{[%clk 00:22:48]} {[%emt 00:02:47]} 18. Qc1 {[%clk 00:12:45]} {[%emt 00:03:21]}
b6 {[%clk 00:22:27]} {[%emt 00:00:31]} 19. b3 {[%clk 00:11:28]} {[%emt
00:01:26]} a6 {[%clk 00:20:59]} {[%emt 00:01:39]} 20. Qa3 {[%clk 00:11:00]}
{[%emt 00:00:38]} Qc7 {[%clk 00:19:27]} {[%emt 00:01:42]} 21. Qb2 {[%clk
00:08:25]} {[%emt 00:02:46]} Qc8 {[%clk 00:13:46]} {[%emt 00:05:51]} 22. Na2
{[%clk 00:07:58]} {[%emt 00:00:36]} b5 {[%clk 00:13:24]} {[%emt 00:00:33]} 23.
axb5 {[%clk 00:06:41]} {[%emt 00:01:27]} axb5 {[%clk 00:13:32]} {[%emt
00:00:01]} 24. b4 {[%clk 00:06:04]} {[%emt 00:00:47]} Nxf3+ {[%clk 00:12:14]}
{[%emt 00:01:28]} 25. Rxf3 {[%clk 00:05:59]} {[%emt 00:00:15]} cxb4 {[%clk
00:09:47]} {[%emt 00:02:37]} 26. Nxb4 {[%clk 00:05:53]} {[%emt 00:00:16]} f5
{[%clk 00:09:20]} {[%emt 00:00:37]} 27. Rff1 {[%clk 00:05:02]} {[%emt
00:01:02]} f4 {[%clk 00:08:59]} {[%emt 00:00:30]} 28. Bf2 {[%clk 00:05:11]} Rf8
{[%clk 00:08:19]} {[%emt 00:00:50]} 29. Be1 {[%clk 00:04:59]} {[%emt 00:00:22]}
g5 {[%clk 00:08:08]} {[%emt 00:00:20]} 30. g4 {[%clk 00:04:09]} {[%emt
00:01:01]} h5 {[%clk 00:07:53]} {[%emt 00:00:25]} 31. Bc3 {[%clk 00:03:32]}
{[%emt 00:00:47]} hxg4 {[%clk 00:05:31]} {[%emt 00:02:32]} 32. hxg4 {[%clk
00:02:40]} {[%emt 00:01:03]} Ng6 {[%clk 00:05:21]} {[%emt 00:00:20]} 33. d4
{[%clk 00:01:18]} {[%emt 00:01:31]} Bxg4 {[%clk 00:05:20]} {[%emt 00:00:12]} 34.
Rd3 {[%clk 00:01:16]} {[%emt 00:00:12]} Be2 {[%clk 00:04:51]} {[%emt 00:00:39]}
35. Qb3+ {[%clk 00:00:51]} {[%emt 00:00:35]} Rf7 {[%clk 00:05:00]} 36. dxe5
{[%clk 00:00:53]} {[%emt 00:00:08]} Bxd3 {[%clk 00:05:08]} {[%emt 00:00:02]} 37.
cxd3 {[%clk 00:00:50]} {[%emt 00:00:12]} g4 {[%clk 00:05:00]} {[%emt 00:00:18]}
38. Nd5 {[%clk 00:00:41]} {[%emt 00:00:20]} f3 {[%clk 00:04:18]} {[%emt
00:00:52]} 39. Bh1 {[%clk 00:00:18]} {[%emt 00:00:32]} Qb8 {[%clk 00:03:34]}
{[%emt 00:00:54]} 40. Kg1 {[%clk 00:00:27]} {[%emt 00:00:01]} Bxe5 {[%clk
00:03:30]} {[%emt 00:00:14]} 41. Nf6+ {[%clk 00:00:36]} {[%emt 00:00:02]} Bxf6
{[%clk 00:03:30]} {[%emt 00:00:09]} 42. Bxf6 {[%clk 00:00:43]} {[%emt
00:00:03]} Qg3+ {[%clk 00:03:38]} {[%emt 00:00:02]} 0-1